fUST/lending_fUST_20250221
["ID","MTS","AMOUNT","RATE_DAILY","PERIOD"]
[353826761,1740081051623,-1204.27,0.00014109,2]
[353826762,1740081051632,-1809.48,0.00014109,2]
[353826763,1740081051642,-500.0,0.00014109,2]
[353826764,1740081051654,-8422.45,0.00014109,2]
[353826765,1740081051663,-500.0,0.00014109,2]
[353826766,1740081051673,-536.89,0.00014109,2]
[353826767,1740081051683,-568.82,0.00014109,2]
[353826768,1740081051692,-2793.5,0.00014109,2]
[353826769,1740081051702,-500.0,0.00014109,2]
[353826770,1740081051712,-3282.07,0.00014109,2]
[353826771,1740081051722,-500.0,0.00014109,2]
[353826772,1740081051732,-500.0,0.00014109,2]
[353826773,1740081051741,-500.0,0.00014109,2]
[353826774,1740081051751,-1891.5,0.00014109,2]
[353826775,1740081051761,-2200.0,0.00014124,2]
[353826776,1740081051771,-600.0,0.00014164,2]
[353826777,1740081051780,-1020.454338,0.00014183,2]
[353826778,1740081051789,-500.0,0.00014191,2]
[353826779,1740081051799,-500.0,0.00014191,2]
[353826780,1740081051810,-409.6576848,0.00014191,2]
[353826781,1740081051819,-500.0,0.00014191,2]
[353826782,1740081051828,-500.0,0.00014191,2]
[353826783,1740081051837,-500.0,0.00014191,2]
[353826784,1740081051846,-1193.65,0.00014191,2]
[353826785,1740081051855,-500.0,0.00014191,2]
[353826786,1740081051865,-584.91,0.00014191,2]
[353826787,1740081051874,-500.0,0.00014191,2]
[353826788,1740081051883,-500.0,0.00014191,2]
[353826789,1740081051892,-500.0,0.00014191,2]
[353826790,1740081051902,-562.22,0.00014191,2]
[353826791,1740081051911,-500.0,0.00014191,2]
[353826792,1740081051920,-726.14,0.00014191,2]
[353826793,1740081051929,-500.0,0.00014191,2]
[353826794,1740081051939,-542.08,0.00014191,2]
[353826795,1740081051949,-500.0,0.00014191,2]
[353826796,1740081051959,-500.0,0.00014191,2]
[353826797,1740081051968,-500.0,0.00014191,2]
[353826798,1740081051978,-500.0,0.00014191,2]
[353826799,1740081051987,-854.98,0.00014191,2]
[353826800,1740081051996,-518.04,0.00014191,2]
[353826801,1740081052005,-500.0,0.00014191,2]
[353826802,1740081052014,-500.0,0.00014191,2]
[353826803,1740081052024,-500.0,0.00014191,2]
[353826804,1740081052033,-796.66,0.00014191,2]
[353826805,1740081052043,-500.0,0.00014191,2]
[353826806,1740081052051,-576.57,0.00014191,2]
[353826807,1740081052061,-500.0,0.00014191,2]
[353826808,1740081052070,-500.0,0.00014191,2]
[353826809,1740081052079,-520.56,0.00014191,2]
[353826810,1740081052088,-500.0,0.00014191,2]
[353826811,1740081052098,-500.0,0.00014191,2]
[353826812,1740081052107,-500.0,0.00014191,2]
[353826813,1740081052116,-855.71,0.00014191,2]
[353826814,1740081052125,-500.0,0.00014191,2]
[353826815,1740081052134,-500.0,0.00014191,2]
[353826816,1740081052143,-500.0,0.00014191,2]
[353826817,1740081052153,-653.55,0.00014191,2]
[353826818,1740081052163,-500.0,0.00014191,2]
[353826819,1740081052172,-500.0,0.00014191,2]
[353826820,1740081052181,-500.0,0.00014191,2]
[353826821,1740081052190,-527.25,0.00014191,2]
[353826822,1740081052199,-526.08,0.00014191,2]
[353826823,1740081052208,-500.0,0.00014191,2]
[353826824,1740081052217,-500.0,0.00014191,2]
[353826825,1740081052226,-500.0,0.00014191,2]
[353826826,1740081052235,-500.0,0.00014191,2]
[353826827,1740081052244,-500.0,0.00014191,2]
[353826828,1740081052254,-500.0,0.00014191,2]
[353826829,1740081052263,-500.0,0.00014191,2]
[353826830,1740081052273,-500.0,0.00014191,2]
[353826831,1740081052282,-500.0,0.00014191,2]
[353826832,1740081052291,-651.0,0.00014191,2]
[353826833,1740081052300,-500.0,0.00014191,2]
[353826834,1740081052310,-593.64,0.00014191,2]
[353826835,1740081052321,-753.07,0.00014191,2]
[353826836,1740081052330,-500.0,0.00014191,2]
[353826837,1740081052339,-500.0,0.00014191,2]
[353826838,1740081052349,-13040.78,0.00014191,2]
[353826839,1740081052359,-1186.37,0.00014191,2]
[353826840,1740081052368,-34993.76,0.00014191,2]
[353826841,1740081052377,-1017.86,0.00014191,2]
[353826842,1740081052387,-500.0,0.00014191,2]
[353826843,1740081052395,-2077.25,0.00014191,2]
[353826844,1740081052405,-963.85,0.00014191,2]
[353826845,1740081052414,-2415.36,0.00014191,2]
[353826846,1740081052425,-1104.4,0.00014191,2]
[353826847,1740081052435,-500.0,0.00014191,2]
[353826848,1740081052444,-928.84,0.00014191,2]
[353826849,1740081052454,-306.62239725,0.00014191,2]
[353826850,1740081052463,-500.0,0.00014191,2]
[353826851,1740081052472,-2659.11,0.00014191,2]
[353826852,1740081052482,-5902.48,0.00014191,2]
[353826853,1740081052491,-893.57,0.00014191,2]
[353826854,1740081052500,-500.0,0.00014191,2]
[353826855,1740081052509,-2976.46,0.00014191,2]
[353826856,1740081052519,-637.75,0.00014191,2]
[353826857,1740081052528,-500.0,0.00014191,2]
[353826858,1740081052538,-500.0,0.00014191,2]
[353826859,1740081052547,-3624.95,0.00014191,2]
[353826860,1740081052556,-500.0,0.00014191,2]
[353826861,1740081052566,-500.0,0.00014191,2]
[353826862,1740081052576,-1955.2,0.00014191,2]
[353826863,1740081052585,-500.0,0.00014191,2]
[353826864,1740081052595,-1867.16,0.00014191,2]
[353826865,1740081052605,-1429.61,0.00014191,2]
[353826866,1740081052615,-500.0,0.00014191,2]
[353826867,1740081052624,-500.0,0.00014191,2]
[353826868,1740081052634,-500.0,0.00014191,2]
[353826869,1740081052643,-500.0,0.00014191,2]
[353826870,1740081052653,-500.0,0.00014191,2]
[353826871,1740081052662,-1152.68,0.00014191,2]
[353826872,1740081052672,-500.0,0.00014191,2]
[353826873,1740081052681,-1741.58,0.00014191,2]
[353826874,1740081052691,-1376.24,0.00014191,2]
[353826875,1740081052701,-5313.9,0.00014191,2]
[353826876,1740081052710,-500.0,0.00014191,2]
[353826877,1740081052719,-500.0,0.00014191,2]
[353826878,1740081052728,-1545.04,0.00014191,2]
[353826879,1740081052738,-500.0,0.00014191,2]
[353826880,1740081052748,-500.0,0.00014191,2]
[353826881,1740081052758,-500.0,0.00014191,2]
[353826882,1740081052767,-12473.25,0.00014191,2]
[353826883,1740081052777,-668.14,0.00014191,2]
[353826884,1740081052786,-472.62235027,0.00014191,2]
[353826885,1740081052796,-500.0,0.00014191,2]
[353826886,1740081052807,-1204.27,0.00014191,2]
[353826887,1740081052817,-1809.48,0.00014191,2]
[353826888,1740081052827,-500.0,0.00014191,2]
[353826889,1740081052837,-8422.45,0.00014191,2]
[353826890,1740081052846,-500.0,0.00014191,2]
[353826891,1740081052856,-536.89,0.00014191,2]
[353826892,1740081052865,-568.82,0.00014191,2]
[353826893,1740081052874,-2793.5,0.00014191,2]
[353826894,1740081052883,-500.0,0.00014191,2]
[353826895,1740081052893,-3282.07,0.00014191,2]
[353826896,1740081052903,-500.0,0.00014191,2]
[353826897,1740081052912,-500.0,0.00014191,2]
[353826898,1740081052922,-500.0,0.00014191,2]
[353826899,1740081052931,-1891.5,0.00014191,2]
[353826900,1740081052940,-2714.81,0.000142,2]
[353826901,1740081052950,-744.07961046,0.00014203,2]
[353826902,1740081052960,-500.0,0.00014273,2]
[353826903,1740081052969,-500.0,0.00014273,2]
[353826904,1740081052979,-500.0,0.00014273,2]
[353826905,1740081052988,-500.0,0.00014273,2]
[353826906,1740081052998,-604.4,0.00014273,2]
[353826907,1740081053007,-1193.65,0.00014273,2]
[353826908,1740081053017,-500.0,0.00014273,2]
[353826909,1740081053026,-584.91,0.00014273,2]
[353826910,1740081053132,-500.0,0.00014273,2]
[353826911,1740081053143,-500.0,0.00014273,2]
[353826912,1740081053154,-562.22,0.00014273,2]
[353826913,1740081053163,-500.0,0.00014273,2]
[353826914,1740081053173,-726.14,0.00014273,2]
[353826915,1740081053183,-500.0,0.00014273,2]
[353826916,1740081053192,-500.0,0.00014273,2]
[353826917,1740081053202,-500.0,0.00014273,2]
[353826918,1740081053211,-500.0,0.00014273,2]
[353826919,1740081053220,-500.0,0.00014273,2]
[353826920,1740081053230,-854.98,0.00014273,2]
[353826921,1740081053239,-518.04,0.00014273,2]
[353826922,1740081053249,-500.0,0.00014273,2]
[353826923,1740081053258,-500.0,0.00014273,2]
[353826924,1740081053267,-497.4229373,0.00014273,2]
[353826925,1740081053280,-796.66,0.00014273,2]
[353826926,1740081053289,-500.0,0.00014273,2]
[353826927,1740081053299,-576.57,0.00014273,2]
[353826928,1740081053309,-500.0,0.00014273,2]
[353826929,1740081053319,-502.48918186,0.00014273,2]
[353826930,1740081053328,-520.56,0.00014273,2]
[353826931,1740081053338,-500.0,0.00014273,2]
[353826932,1740081053350,-500.0,0.00014273,2]
[353826933,1740081053360,-500.0,0.00014273,2]
[353826934,1740081053370,-855.71,0.00014273,2]
[353826935,1740081053379,-500.0,0.00014273,2]
[353826936,1740081053389,-500.0,0.00014273,2]
[353826937,1740081053398,-500.0,0.00014273,2]
[353826938,1740081053408,-653.55,0.00014273,2]
[353826939,1740081053418,-500.0,0.00014273,2]
[353826940,1740081053427,-500.0,0.00014273,2]
[353826941,1740081053436,-175.74853717,0.00014273,2]
[353826942,1740081053446,-527.25,0.00014273,2]
[353826943,1740081053455,-526.08,0.00014273,2]
[353826944,1740081053464,-500.0,0.00014273,2]
[353826945,1740081053474,-500.0,0.00014273,2]
[353826946,1740081053483,-500.0,0.00014273,2]
[353826947,1740081053493,-500.0,0.00014273,2]
[353826948,1740081053502,-500.0,0.00014273,2]
[353826949,1740081053512,-500.0,0.00014273,2]
[353826950,1740081053521,-500.0,0.00014273,2]
[353826951,1740081053530,-500.0,0.00014273,2]
[353826952,1740081053540,-500.0,0.00014273,2]
[353826953,1740081053550,-651.0,0.00014273,2]
[353826954,1740081053560,-500.0,0.00014273,2]
[353826955,1740081053570,-593.64,0.00014273,2]
[353826956,1740081053581,-753.07,0.00014273,2]
[353826957,1740081053590,-500.0,0.00014273,2]
[353826958,1740081053600,-500.0,0.00014273,2]
[353826959,1740081053610,-13040.78,0.00014273,2]
[353826960,1740081053620,-1186.37,0.00014273,2]
[353826961,1740081053629,-34993.76,0.00014273,2]
[353826962,1740081053638,-1017.86,0.00014273,2]
[353826963,1740081053648,-500.0,0.00014273,2]
[353826964,1740081053658,-2077.25,0.00014273,2]
[353826965,1740081053668,-963.85,0.00014273,2]
[353826966,1740081053677,-2415.36,0.00014273,2]
[353826967,1740081053687,-1104.4,0.00014273,2]
[353826968,1740081053696,-500.0,0.00014273,2]
[353826969,1740081053705,-928.84,0.00014273,2]
[353826970,1740081053715,-500.0,0.00014273,2]
[353826971,1740081053724,-2659.11,0.00014273,2]
[353826972,1740081053734,-5902.48,0.00014273,2]
[353826973,1740081053743,-893.57,0.00014273,2]
[353826974,1740081053753,-500.0,0.00014273,2]
[353826975,1740081053762,-2976.46,0.00014273,2]
[353826976,1740081053771,-637.75,0.00014273,2]
[353826977,1740081053781,-278.9838097,0.00014273,2]
[353826978,1740081053791,-500.0,0.00014273,2]
[353826979,1740081053800,-3624.95,0.00014273,2]
[353826980,1740081053811,-500.0,0.00014273,2]
[353826981,1740081053821,-500.0,0.00014273,2]
[353826982,1740081053830,-1955.2,0.00014273,2]
[353826983,1740081053840,-378.45,0.00014273,2]
[353826984,1740081053850,-1867.16,0.00014273,2]
[353826985,1740081053859,-1429.61,0.00014273,2]
[353826986,1740081053870,-500.0,0.00014273,2]
[353826987,1740081053879,-500.0,0.00014273,2]
[353826988,1740081053890,-500.0,0.00014273,2]
[353826989,1740081053900,-525.13,0.00014273,2]
[353826990,1740081053910,-500.0,0.00014273,2]
[353826991,1740081053919,-1152.68,0.00014273,2]
[353826992,1740081053929,-500.0,0.00014273,2]
[353826993,1740081053939,-1741.58,0.00014273,2]
[353826994,1740081053949,-1376.24,0.00014273,2]
[353826995,1740081053960,-5313.9,0.00014273,2]
[353826996,1740081053970,-500.0,0.00014273,2]
[353826997,1740081053980,-500.0,0.00014273,2]
[353826998,1740081053990,-1545.04,0.00014273,2]
[353826999,1740081054001,-500.0,0.00014273,2]
[353827000,1740081054010,-500.0,0.00014273,2]
[353827001,1740081054020,-500.0,0.00014273,2]
[353827002,1740081054031,-12473.25,0.00014273,2]
[353827003,1740081054040,-668.14,0.00014273,2]
[353827004,1740081054050,-500.0,0.00014273,2]
[353827005,1740081054059,-1204.27,0.00014273,2]
[353827006,1740081054069,-1809.48,0.00014273,2]
[353827007,1740081054080,-500.0,0.00014273,2]
[353827008,1740081054089,-8422.45,0.00014273,2]
[353827009,1740081054099,-500.0,0.00014273,2]
[353827010,1740081054108,-536.89,0.00014273,2]
[353827011,1740081054118,-568.82,0.00014273,2]
[353827012,1740081054127,-2793.5,0.00014273,2]
[353827013,1740081054137,-496.55983966,0.00014273,2]
[353827014,1740081054147,-3282.07,0.00014273,2]
[353827015,1740081054157,-500.0,0.00014273,2]
[353827016,1740081054167,-500.0,0.00014273,2]
[353827017,1740081054176,-744.07961046,0.00014303,2]
[353827018,1740081054185,-600.0,0.00014304,2]
[353827019,1740081054195,-1000.0,0.00014321,2]
[353827020,1740081054205,-1000.0,0.00014321,2]
[353827021,1740081054214,-500.0,0.00014356,2]
[353827022,1740081054224,-500.0,0.00014356,2]
[353827023,1740081054233,-500.0,0.00014356,2]
[353827024,1740081054243,-500.0,0.00014356,2]
[353827025,1740081054253,-1193.65,0.00014356,2]
[353827026,1740081054262,-584.91,0.00014356,2]
[353827027,1740081054273,-500.0,0.00014356,2]
[353827028,1740081054285,-500.0,0.00014356,2]
[353827029,1740081054294,-562.22,0.00014356,2]
[353827030,1740081054303,-299.16,0.00014356,2]
[353827031,1740081054313,-726.14,0.00014356,2]
[353827032,1740081054323,-500.0,0.00014356,2]
[353827033,1740081054334,-500.0,0.00014356,2]
[353827034,1740081054344,-500.0,0.00014356,2]
[353827035,1740081054354,-500.0,0.00014356,2]
[353827036,1740081054363,-500.0,0.00014356,2]
[353827037,1740081054373,-854.98,0.00014356,2]
[353827038,1740081054383,-518.04,0.00014356,2]
[353827039,1740081054392,-331.08,0.00014356,2]
[353827040,1740081054403,-796.66,0.00014356,2]
[353827041,1740081054412,-297.48849811,0.00014356,2]
[353827042,1740081054421,-576.57,0.00014356,2]
[353827043,1740081054431,-500.0,0.00014356,2]
[353827044,1740081054440,-520.56,0.00014356,2]
[353827045,1740081054449,-500.0,0.00014356,2]
[353827046,1740081054459,-500.0,0.00014356,2]
[353827047,1740081054468,-500.0,0.00014356,2]
[353827048,1740081054478,-855.71,0.00014356,2]
[353827049,1740081054487,-500.0,0.00014356,2]
[353827050,1740081054496,-500.0,0.00014356,2]
[353827051,1740081054506,-500.0,0.00014356,2]
[353827052,1740081054515,-653.55,0.00014356,2]
[353827053,1740081054524,-215.34,0.00014356,2]
[353827054,1740081054534,-321.98,0.00014356,2]
[353827055,1740081054543,-527.25,0.00014356,2]
[353827056,1740081054553,-526.08,0.00014356,2]
[353827057,1740081054562,-500.0,0.00014356,2]
[353827058,1740081054572,-500.0,0.00014356,2]
[353827059,1740081054582,-404.52,0.00014356,2]
[353827060,1740081054591,-500.0,0.00014356,2]
[353827061,1740081054601,-500.0,0.00014356,2]
[353827062,1740081054611,-500.0,0.00014356,2]
[353827063,1740081054621,-500.0,0.00014356,2]
[353827064,1740081054630,-500.0,0.00014356,2]
[353827065,1740081054639,-500.0,0.00014356,2]
[353827066,1740081054649,-651.0,0.00014356,2]
[353827067,1740081054659,-500.0,0.00014356,2]
[353827068,1740081054668,-593.64,0.00014356,2]
[353827069,1740081054678,-753.07,0.00014356,2]
[353827070,1740081054687,-500.0,0.00014356,2]
[353827071,1740081054697,-500.0,0.00014356,2]
[353827072,1740081054707,-13040.78,0.00014356,2]
[353827073,1740081054716,-1186.37,0.00014356,2]
[353827074,1740081054726,-34993.76,0.00014356,2]
[353827075,1740081054735,-1017.86,0.00014356,2]
[353827076,1740081054745,-500.0,0.00014356,2]
[353827077,1740081054754,-2077.25,0.00014356,2]
[353827078,1740081054763,-963.85,0.00014356,2]
[353827079,1740081054774,-2415.36,0.00014356,2]
[353827080,1740081054784,-1104.4,0.00014356,2]
[353827081,1740081054794,-500.0,0.00014356,2]
[353827082,1740081054803,-928.84,0.00014356,2]
[353827083,1740081054813,-500.0,0.00014356,2]
[353827084,1740081054823,-2659.11,0.00014356,2]
[353827085,1740081054832,-5902.48,0.00014356,2]
[353827086,1740081054843,-893.57,0.00014356,2]
[353827087,1740081054853,-500.0,0.00014356,2]
[353827088,1740081054863,-2976.46,0.00014356,2]
[353827089,1740081054873,-637.75,0.00014356,2]
[353827090,1740081054883,-500.0,0.00014356,2]
[353827091,1740081054892,-3624.95,0.00014356,2]
[353827092,1740081054903,-500.0,0.00014356,2]
[353827093,1740081054912,-500.0,0.00014356,2]
[353827094,1740081054922,-1955.2,0.00014356,2]
[353827095,1740081054932,-1867.16,0.00014356,2]
[353827096,1740081054942,-1429.61,0.00014356,2]
[353827097,1740081054951,-500.0,0.00014356,2]
[353827098,1740081054962,-500.0,0.00014356,2]
[353827099,1740081054972,-500.0,0.00014356,2]
[353827100,1740081054982,-500.0,0.00014356,2]
[353827101,1740081054992,-1152.68,0.00014356,2]
[353827102,1740081055002,-500.0,0.00014356,2]
[353827103,1740081055012,-1741.58,0.00014356,2]
[353827104,1740081055022,-1376.24,0.00014356,2]
[353827105,1740081055032,-5313.9,0.00014356,2]
[353827106,1740081055042,-500.0,0.00014356,2]
[353827107,1740081055051,-500.0,0.00014356,2]
[353827108,1740081055060,-1545.04,0.00014356,2]
[353827109,1740081055070,-629.31690969,0.00014356,2]
[353827110,1740081055079,-500.0,0.00014356,2]
[353827111,1740081055089,-500.0,0.00014356,2]
[353827112,1740081055099,-12473.25,0.00014356,2]
[353827113,1740081055187,-668.14,0.00014356,2]
[353827114,1740081055205,-500.0,0.00014356,2]
[353827115,1740081055215,-1204.27,0.00014356,2]
[353827116,1740081055224,-1809.48,0.00014356,2]
[353827117,1740081055234,-500.0,0.00014356,2]
[353827118,1740081055243,-8422.45,0.00014356,2]
[353827119,1740081055253,-500.0,0.00014356,2]
[353827120,1740081055261,-536.89,0.00014356,2]
[353827121,1740081055271,-568.82,0.00014356,2]
[353827122,1740081055284,-2793.5,0.00014356,2]
[353827123,1740081055294,-3282.07,0.00014356,2]
[353827124,1740081055304,-242.45975678,0.00014356,2]
[353827125,1740081055314,-500.0,0.00014356,2]
[353827126,1740081055325,-32519.5319469,0.000144,2]
[353827127,1740081055335,-744.07961046,0.00014403,2]
[353827128,1740081055346,-160.0,0.0001442,5]
[353827129,1740081055357,-160.0,0.0001442,5]
[353827130,1740081055367,-160.0,0.0001442,5]
[353827131,1740081055377,-500.0,0.00014438,2]
[353827132,1740081055386,-500.0,0.00014438,2]
[353827133,1740081055395,-500.0,0.00014438,2]
[353827134,1740081055404,-500.0,0.00014438,2]
[353827135,1740081055414,-1193.65,0.00014438,2]
[353827136,1740081055423,-584.91,0.00014438,2]
[353827137,1740081055433,-500.0,0.00014438,2]
[353827138,1740081055443,-500.0,0.00014438,2]
[353827139,1740081055452,-562.22,0.00014438,2]
[353827140,1740081055461,-726.14,0.00014438,2]
[353827141,1740081055470,-600.60684181,0.00014438,2]
[353827142,1740081055480,-559.24,0.00014438,2]
[353827143,1740081055489,-500.0,0.00014438,2]
[353827144,1740081055499,-500.0,0.00014438,2]
[353827145,1740081055509,-500.0,0.00014438,2]
[353827146,1740081055518,-854.98,0.00014438,2]
[353827147,1740081055527,-518.04,0.00014438,2]
[353827148,1740081055537,-796.66,0.00014438,2]
[353827149,1740081055546,-576.57,0.00014438,2]
[353827150,1740081055556,-500.0,0.00014438,2]
[353827151,1740081055565,-520.56,0.00014438,2]
[353827152,1740081055575,-500.0,0.00014438,2]
[353827153,1740081055584,-500.0,0.00014438,2]
[353827154,1740081055594,-500.0,0.00014438,2]
[353827155,1740081055603,-855.71,0.00014438,2]
[353827156,1740081055612,-500.0,0.00014438,2]
[353827157,1740081055622,-500.0,0.00014438,2]
[353827158,1740081055631,-500.0,0.00014438,2]
[353827159,1740081055641,-653.55,0.00014438,2]
[353827160,1740081055650,-527.25,0.00014438,2]
[353827161,1740081055660,-526.08,0.00014438,2]
[353827162,1740081055670,-500.0,0.00014438,2]
[353827163,1740081055680,-347.76023138,0.00014438,2]
[353827164,1740081055690,-500.0,0.00014438,2]
[353827165,1740081055700,-500.0,0.00014438,2]
[353827166,1740081055710,-500.0,0.00014438,2]
[353827167,1740081055720,-500.0,0.00014438,2]
[353827168,1740081055729,-500.0,0.00014438,2]
[353827169,1740081055739,-500.0,0.00014438,2]
[353827170,1740081055749,-651.0,0.00014438,2]
[353827171,1740081055759,-500.0,0.00014438,2]
[353827172,1740081055769,-593.64,0.00014438,2]
[353827173,1740081055778,-753.07,0.00014438,2]
[353827174,1740081055788,-500.0,0.00014438,2]
[353827175,1740081055798,-500.0,0.00014438,2]
[353827176,1740081055807,-13040.78,0.00014438,2]
[353827177,1740081055817,-1186.37,0.00014438,2]
[353827178,1740081055826,-34993.76,0.00014438,2]
[353827179,1740081055835,-1017.86,0.00014438,2]
[353827180,1740081055845,-500.0,0.00014438,2]
[353827181,1740081055854,-2077.25,0.00014438,2]
[353827182,1740081055864,-963.85,0.00014438,2]
[353827183,1740081055874,-2415.36,0.00014438,2]
[353827184,1740081055883,-1104.4,0.00014438,2]
[353827185,1740081055892,-500.0,0.00014438,2]
[353827186,1740081055902,-928.84,0.00014438,2]
[353827187,1740081055912,-500.0,0.00014438,2]
[353827188,1740081055921,-2659.11,0.00014438,2]
[353827189,1740081055931,-5902.48,0.00014438,2]
[353827190,1740081055941,-893.57,0.00014438,2]
[353827191,1740081055952,-500.0,0.00014438,2]
[353827192,1740081055965,-2976.46,0.00014438,2]
[353827193,1740081055975,-637.75,0.00014438,2]
[353827194,1740081055985,-500.0,0.00014438,2]
[353827195,1740081055995,-3624.95,0.00014438,2]
[353827196,1740081056005,-500.0,0.00014438,2]
[353827197,1740081056015,-500.0,0.00014438,2]
[353827198,1740081056025,-1955.2,0.00014438,2]
[353827199,1740081056035,-1867.16,0.00014438,2]
[353827200,1740081056044,-1429.61,0.00014438,2]
[353827201,1740081056054,-188.30426012,0.00014438,2]
[353827202,1740081056064,-500.0,0.00014438,2]
[353827203,1740081056073,-500.0,0.00014438,2]
[353827204,1740081056084,-500.0,0.00014438,2]
[353827205,1740081056093,-1152.68,0.00014438,2]
[353827206,1740081056103,-500.0,0.00014438,2]
[353827207,1740081056112,-1741.58,0.00014438,2]
[353827208,1740081056123,-1376.24,0.00014438,2]
[353827209,1740081056133,-5313.9,0.00014438,2]
[353827210,1740081056142,-360.23591674,0.00014438,2]
[353827211,1740081056153,-500.0,0.00014438,2]
[353827212,1740081056162,-1545.04,0.00014438,2]
[353827213,1740081056171,-500.0,0.00014438,2]
[353827214,1740081056181,-500.0,0.00014438,2]
[353827215,1740081056191,-12473.25,0.00014438,2]
[353827216,1740081056201,-668.14,0.00014438,2]
[353827217,1740081056211,-500.0,0.00014438,2]
[353827218,1740081056220,-1204.27,0.00014438,2]
[353827219,1740081056229,-1809.48,0.00014438,2]
[353827220,1740081056238,-500.0,0.00014438,2]
[353827221,1740081056248,-8422.45,0.00014438,2]
[353827222,1740081056257,-171.51,0.00014438,2]
[353827223,1740081056267,-536.89,0.00014438,2]
[353827224,1740081056280,-568.82,0.00014438,2]
[353827225,1740081056289,-2793.5,0.00014438,2]
[353827226,1740081056299,-3282.07,0.00014438,2]
[353827227,1740081056309,-605.42324317,0.00014453,2]
[353827228,1740081056319,-744.07961046,0.00014503,2]
[353827229,1740081056329,-500.0,0.0001452,2]
[353827230,1740081056338,-500.0,0.0001452,2]
[353827231,1740081056348,-500.0,0.0001452,2]
[353827232,1740081056359,-500.0,0.0001452,2]
[353827233,1740081056369,-1193.65,0.0001452,2]
[353827234,1740081056379,-584.91,0.0001452,2]
[353827235,1740081056388,-500.0,0.0001452,2]
[353827236,1740081056398,-500.0,0.0001452,2]
[353827237,1740081056408,-562.22,0.0001452,2]
[353827238,1740081056418,-726.14,0.0001452,2]
[353827239,1740081056427,-500.0,0.0001452,2]
[353827240,1740081056437,-500.0,0.0001452,2]
[353827241,1740081056447,-500.0,0.0001452,2]
[353827242,1740081056457,-854.98,0.0001452,2]
[353827243,1740081056466,-518.04,0.0001452,2]
[353827244,1740081056475,-796.66,0.0001452,2]
[353827245,1740081056485,-576.57,0.0001452,2]
[353827246,1740081056497,-500.0,0.0001452,2]
[353827247,1740081056507,-520.56,0.0001452,2]
[353827248,1740081056516,-500.0,0.0001452,2]
[353827249,1740081056525,-500.0,0.0001452,2]
[353827250,1740081056534,-500.0,0.0001452,2]
[353827251,1740081056544,-855.71,0.0001452,2]
[353827252,1740081056553,-500.0,0.0001452,2]
[353827253,1740081056563,-500.0,0.0001452,2]
[353827254,1740081056571,-500.0,0.0001452,2]
[353827255,1740081056581,-653.55,0.0001452,2]
[353827256,1740081056590,-527.25,0.0001452,2]
[353827257,1740081056599,-526.08,0.0001452,2]
[353827258,1740081056609,-500.0,0.0001452,2]
[353827259,1740081056618,-500.0,0.0001452,2]
[353827260,1740081056627,-500.0,0.0001452,2]